fUSD/lending_fUSD_20250308
["ID","MTS","AMOUNT","RATE_DAILY","PERIOD"]
[355694049,1741468240036,-1000.0,9.9e-05,2]
[355694050,1741468240046,-10315.707,9.9e-05,2]
[355694051,1741468240056,-1323.94030562,9.914e-05,2]
[355694052,1741468240066,-1323.94030562,9.927e-05,2]
[355694053,1741468240076,-3688.36000099,9.964e-05,2]
[355694054,1741468240085,-32460.2756206,9.969e-05,2]
[355694055,1741468240095,-160.20265282,9.973e-05,2]
[355694056,1741468240104,-555.84944078,9.973e-05,2]
[355694057,1741468240114,-151.28774341,9.973e-05,2]
[355694058,1741468240123,-151.28840854,9.973e-05,2]
[355694059,1741468240132,-208.60702051,9.973e-05,2]
[355694060,1741468240142,-554.79678278,9.973e-05,2]
[355694061,1741468240151,-150.0,9.984e-05,2]
[355694062,1741468240161,-500.0,9.996e-05,2]
[355694063,1741468240171,-500.0,9.996e-05,2]
[355694064,1741468240180,-500.0,9.996e-05,2]
[355694065,1741468240190,-524.28,9.996e-05,2]
[355694066,1741468240200,-500.0,9.996e-05,2]
[355694067,1741468240209,-659.74,9.996e-05,2]
[355694068,1741468240219,-673.71,9.996e-05,2]
[355694069,1741468240228,-500.0,9.996e-05,2]
[355694070,1741468240238,-820.51,9.996e-05,2]
[355694071,1741468240248,-593.82,9.996e-05,2]
[355694072,1741468240257,-569.5,9.996e-05,2]
[355694073,1741468240266,-500.0,9.996e-05,2]
[355694074,1741468240275,-702.52,9.996e-05,2]
[355694075,1741468240285,-3322.13,9.996e-05,2]
[355694076,1741468240294,-500.0,9.996e-05,2]
[355694077,1741468240304,-500.0,9.996e-05,2]
[355694078,1741468240313,-500.0,9.996e-05,2]
[355694079,1741468240323,-841.98,9.996e-05,2]
[355694080,1741468240333,-2241.44,9.996e-05,2]
[355694081,1741468240343,-500.0,9.996e-05,2]
[355694082,1741468240352,-500.0,9.996e-05,2]
[355694083,1741468240362,-611.5,9.996e-05,2]
[355694084,1741468240375,-500.0,9.996e-05,2]
[355694085,1741468240384,-500.0,9.996e-05,2]
[355694086,1741468240394,-364.84996807,9.996e-05,2]
[355694088,1741468240403,-500.0,9.996e-05,2]
[355694089,1741468240413,-500.0,9.996e-05,2]
[355694090,1741468240422,-500.0,9.996e-05,2]
[355694092,1741468240432,-500.0,9.996e-05,2]
[355694093,1741468240442,-500.0,9.996e-05,2]
[355694094,1741468240452,-500.0,9.996e-05,2]
[355694095,1741468240462,-547.54,9.996e-05,2]
[355694096,1741468240473,-500.0,9.996e-05,2]
[355694097,1741468240484,-500.0,9.997e-05,2]
[355694099,1741468240494,-500.0,9.997e-05,2]
[355694100,1741468240508,-500.0,9.997e-05,2]
[355694101,1741468240518,-539.42,9.997e-05,2]
[355694102,1741468240528,-500.0,9.997e-05,2]
[355694103,1741468240538,-840.14,9.997e-05,2]
[355694104,1741468240547,-500.0,9.997e-05,2]
[355694105,1741468240558,-500.0,9.997e-05,2]
[355694106,1741468240568,-698.72,9.997e-05,2]
[355694107,1741468240577,-500.0,9.997e-05,2]
[355694108,1741468240587,-527.05,9.997e-05,2]
[355694109,1741468240597,-1393.6,9.997e-05,2]
[355694110,1741468240607,-1556.16,9.997e-05,2]
[355694111,1741468240616,-651.97,9.997e-05,2]
[355694112,1741468240625,-561.1,9.997e-05,2]
[355694113,1741468240635,-2715.46,9.997e-05,2]
[355694114,1741468240645,-1762.95,9.997e-05,2]
[355694115,1741468240655,-777.29,9.997e-05,2]
[355694116,1741468240665,-555.13,9.997e-05,2]
[355694117,1741468240676,-1306.22,9.997e-05,2]
[355694118,1741468240689,-811.66,9.997e-05,2]
[355694119,1741468240698,-500.0,9.997e-05,2]
[355694120,1741468240708,-634.43,9.997e-05,2]
[355694121,1741468240718,-1939.68,9.997e-05,2]
[355694122,1741468240727,-500.0,9.997e-05,2]
[355694123,1741468240737,-1440.76,9.997e-05,2]
[355694124,1741468240746,-683.39,9.997e-05,2]
[355694125,1741468240757,-441.02494293,9.997e-05,2]
[355694126,1741468240767,-530.32,9.997e-05,2]
[355694127,1741468240778,-500.0,9.997e-05,2]
[355694128,1741468240788,-500.0,9.997e-05,2]
[355694129,1741468240800,-500.0,9.997e-05,2]
[355694130,1741468240811,-680.07,9.997e-05,2]
[355694131,1741468240822,-1390.33,9.997e-05,2]
[355694132,1741468240835,-500.0,9.998e-05,2]
[355694133,1741468240846,-500.0,9.998e-05,2]
[355694134,1741468240856,-500.0,9.998e-05,2]
[355694135,1741468240867,-174.6,9.998e-05,2]
[355694136,1741468240876,-500.0,9.998e-05,2]
[355694137,1741468240886,-500.0,9.998e-05,2]
[355694138,1741468240896,-500.0,9.998e-05,2]
[355694139,1741468240905,-500.0,9.998e-05,2]
[355694140,1741468240914,-500.0,9.998e-05,2]
[355694141,1741468240924,-500.0,9.998e-05,2]
[355694142,1741468240934,-864.82,9.998e-05,2]
[355694143,1741468240944,-500.0,9.998e-05,2]
[355694144,1741468240954,-500.0,9.998e-05,2]
[355694145,1741468240963,-500.0,9.998e-05,2]
[355694146,1741468240972,-500.0,9.998e-05,2]
[355694147,1741468240982,-500.0,9.998e-05,2]
[355694148,1741468240992,-500.0,9.998e-05,2]
[355694149,1741468241001,-500.0,9.998e-05,2]
[355694150,1741468241010,-296.67391072,9.998e-05,2]
[355694151,1741468241020,-503.17,9.998e-05,2]
[355694152,1741468241030,-500.0,9.998e-05,2]
[355694153,1741468241039,-500.0,9.998e-05,2]
[355694154,1741468241048,-500.0,9.998e-05,2]
[355694155,1741468241058,-500.0,9.998e-05,2]
[355694156,1741468241068,-500.0,9.998e-05,2]
[355694157,1741468241077,-500.0,9.998e-05,2]
[355694158,1741468241087,-500.0,9.998e-05,2]
[355694159,1741468241097,-500.0,9.998e-05,2]
[355694160,1741468241108,-500.0,9.998e-05,2]
[355694161,1741468241117,-500.0,9.998e-05,2]
[355694162,1741468241128,-500.0,9.998e-05,2]
[355694163,1741468241138,-550.45670956,9.998e-05,2]
[355694164,1741468241148,-500.0,9.998e-05,2]
[355694165,1741468241158,-500.0,9.998e-05,2]
[355694166,1741468241169,-500.0,9.998e-05,2]
[355694167,1741468241179,-569.71,9.998e-05,2]
[355694168,1741468241189,-500.0,9.998e-05,2]
[355694169,1741468241199,-734.83,9.998e-05,2]
[355694170,1741468241210,-812.45,9.998e-05,2]
[355694171,1741468241220,-1636.79,9.998e-05,2]
[355694172,1741468241229,-500.0,9.998e-05,2]
[355694173,1741468241239,-7875.01,9.998e-05,2]
[355694174,1741468241248,-717.57,9.998e-05,2]
[355694175,1741468241258,-500.0,9.998e-05,2]
[355694176,1741468241268,-500.0,9.998e-05,2]
[355694177,1741468241278,-516.43,9.998e-05,2]
[355694178,1741468241287,-995.76,9.998e-05,2]
[355694179,1741468241297,-500.0,9.998e-05,2]
[355694180,1741468241307,-500.0,9.998e-05,2]
[355694181,1741468241317,-5644.85,9.998e-05,2]
[355694182,1741468241326,-500.0,9.998e-05,2]
[355694183,1741468241335,-500.0,9.998e-05,2]
[355694184,1741468241345,-615.32,9.998e-05,2]
[355694185,1741468241589,-500.0,9.998e-05,2]
[355694186,1741468241599,-500.0,9.998e-05,2]
[355694187,1741468241610,-1027.43,9.998e-05,2]
[355694188,1741468241620,-500.0,9.998e-05,2]
[355694189,1741468241629,-500.0,9.998e-05,2]
[355694190,1741468241639,-500.0,9.998e-05,2]
[355694191,1741468241652,-1339.61,9.998e-05,2]
[355694192,1741468241662,-967.33,9.998e-05,2]
[355694193,1741468241672,-420.701919,9.998e-05,2]
[355694194,1741468241681,-784.49,9.998e-05,2]
[355694195,1741468241691,-500.0,9.998e-05,2]
[355694196,1741468241701,-254.33708857,9.998e-05,2]
[355694197,1741468241711,-555.99,9.998e-05,2]
[355694198,1741468241721,-1003.16,9.998e-05,2]
[355694199,1741468241731,-500.0,9.998e-05,2]
[355694200,1741468241743,-500.0,9.998e-05,2]
[355694201,1741468241752,-500.0,9.999e-05,2]
[355694202,1741468241762,-2078.135,9.999e-05,2]
[355694203,1741468241771,-257.0984201,9.999e-05,2]
[355694204,1741468241781,-500.0,9.999e-05,2]
[355694205,1741468241791,-500.0,9.999e-05,2]
[355694206,1741468241800,-500.0,9.999e-05,2]
[355694207,1741468241809,-1690.6,9.999e-05,2]
[355694208,1741468241819,-500.0,9.999e-05,2]
[355694209,1741468241829,-436.22578035,9.999e-05,2]
[355694210,1741468241839,-500.0,9.999e-05,2]
[355694211,1741468241849,-500.0,9.999e-05,2]
[355694212,1741468241859,-500.0,9.999e-05,2]
[355694213,1741468241868,-500.0,9.999e-05,2]
[355694214,1741468241878,-370.41565938,9.999e-05,2]
[355694215,1741468241887,-1760.8,9.999e-05,2]
[355694216,1741468241897,-918.05,9.999e-05,2]
[355694217,1741468241906,-446.41755867,9.999e-05,2]
[355694218,1741468241915,-500.0,9.999e-05,2]
[355694219,1741468241925,-1438.0,9.999e-05,2]
[355694220,1741468241934,-636.98452925,0.0001,2]
[355694221,1741468241942,-139262.25037798,0.0001,2]
[355694222,1741468241959,-127333.43828984,0.0001,2]
[355694223,1741468241976,-44488.85274763,0.0001,2]
[355694224,1741468241987,-1971.741075,0.0001,2]
[355694225,1741468241998,-1811.74434359,0.0001,2]
[355694226,1741468242023,-159.25,9.615e-05,2]
[355694227,1741468242032,-177.88671123,0.0001,2]
[355694228,1741468242043,-2705.74714992,0.0001,2]
[355694247,1741468245901,-500.0,9.996e-05,2]
[355694248,1741468245910,-1231.96,0.0001,2]
[355694249,1741468246014,-12448.66,0.0001,2]
[355694250,1741468246133,-934.13172557,8.642e-05,2]
[355694251,1741468246143,-30838.03122701,0.0001,2]
[355694252,1741468246188,-482.46473946,0.0001,2]
[355694254,1741468261593,896.82,0.00016493,30]
[355694255,1741468261802,896.82,0.00020971,30]
[355694264,1741468398071,500.0,0.00025004,120]
[355694265,1741468398468,500.0,0.00026831,120]
[355694266,1741468399273,500.0,0.00027999,120]
[355694268,1741468434801,50000.0,0.00025,30]
[355694270,1741468440528,50000.0,0.00025,31]
[355694271,1741468444412,50000.0,0.00025,32]
[355694272,1741468449846,50000.0,0.00025,33]
[355694273,1741468453954,50000.0,0.00025,34]
[355694274,1741468468173,50000.0,0.00025,35]
[355694275,1741468473619,50000.0,0.00025,36]
[355694276,1741468479088,50000.0,0.00025,37]
[355694279,1741468494932,26109.95633422,0.00025,38]
[355694287,1741468998313,500.0,0.00025173,120]
[355694288,1741468998653,500.0,0.00026791,120]
[355694334,1741469432119,-1157.52,8.219e-05,2]
[355694335,1741469432130,-159.25,8.95e-05,2]
[355694336,1741469432139,-170.98,8.965e-05,2]
[355694337,1741469432149,-1000.0,8.983e-05,2]
[355694338,1741469432158,-594.22164808,9e-05,2]
[355694339,1741469432170,-416.5567182,9e-05,2]
[355694340,1741469432179,-934.13172556,9e-05,2]
[355694341,1741469432189,-338.39,9.039e-05,2]
[355694342,1741469432198,-187.43,9.057e-05,2]
[355694343,1741469432207,-1240.32,9.185e-05,2]
[355694344,1741469432217,-159.25,9.486e-05,2]
[355694345,1741469432226,-150.0,9.492e-05,2]
[355694346,1741469432235,-550.0,9.492e-05,2]
[355694347,1741469432245,-150.99,9.492e-05,2]
[355694348,1741469432255,-2325.63,9.492e-05,2]
[355694349,1741469432264,-500.0,9.562e-05,2]
[355694350,1741469432274,-150.0,9.589e-05,2]
[355694351,1741469432283,-150.0,9.769e-05,2]
[355694352,1741469432294,-251.38,9.77e-05,2]
[355694353,1741469432303,-390.2899,9.8e-05,2]
[355694354,1741469432313,-2469.8719,9.8e-05,2]
[355694355,1741469432322,-5657.24506259,9.8e-05,2]
[355694356,1741469432334,-2246.83155455,9.8e-05,2]
[355694357,1741469432362,-5654.51748286,9.8e-05,2]
[355694358,1741469432372,-1000.0,9.8e-05,2]
[355694359,1741469432382,-1568.1875,9.896e-05,2]
[355694360,1741469432391,-431.32865616,9.9e-05,2]
[355694361,1741469432410,-568.67134384,9.9e-05,2]
[355694362,1741469432420,-906.16580515,9.959e-05,2]
[355694363,1741469432429,-31522.530729,9.969e-05,2]
[355694364,1741469432438,-19607.81779717,9.97e-05,2]
[355694365,1741469432447,-160.27363272,9.973e-05,2]
[355694366,1741469432457,-500.0,9.996e-05,2]
[355694367,1741469432466,-591.10273417,9.996e-05,2]
[355694368,1741469432476,-500.0,9.996e-05,2]
[355694369,1741469432485,-500.0,9.996e-05,2]
[355694370,1741469432494,-500.0,9.996e-05,2]
[355694371,1741469432504,-500.0,9.996e-05,2]
[355694372,1741469432513,-436.22578035,9.996e-05,2]
[355694373,1741469432523,-500.0,9.996e-05,2]
[355694374,1741469432532,-500.0,9.996e-05,2]
[355694375,1741469432542,-153.51487576,9.996e-05,2]
[355694376,1741469432791,-346.48512424,9.996e-05,2]
[355694377,1741469432801,-464.45511132,9.996e-05,2]
[355694384,1741469438020,-35.54488868,9.996e-05,2]
[355694387,1741469438030,-370.41565938,9.996e-05,2]
[355694389,1741469438040,-2.86208427,9.998e-05,2]
[355694390,1741469438052,-443.5554744,9.998e-05,2]
[355694391,1741469438061,-498.8145256,9.998e-05,2]
[355694392,1741469438143,-1.1854744,9.998e-05,2]
[355694393,1741469438153,-776.10644288,9.999e-05,2]
[355694394,1741469438200,-1302.02855712,9.999e-05,2]
[355694395,1741469438209,-296.67391072,9.999e-05,2]
[355694396,1741469438219,-585.50432316,9.999e-05,2]
[355694397,1741469438228,-1720.7,9.999e-05,2]
[355694398,1741469438238,-500.0,9.999e-05,2]
[355694399,1741469438248,-500.0,9.999e-05,2]
[355694400,1741469438258,-500.0,9.999e-05,2]
[355694401,1741469438267,-500.0,9.999e-05,2]
[355694402,1741469438277,-500.0,9.999e-05,2]
[355694403,1741469438287,-500.0,9.999e-05,2]
[355694404,1741469438296,-500.0,9.999e-05,2]
[355694405,1741469438305,-500.0,9.999e-05,2]
[355694406,1741469438314,-500.0,9.999e-05,2]
[355694408,1741469438323,-500.0,9.999e-05,2]
[355694410,1741469438333,-500.0,9.999e-05,2]
[355694412,1741469438342,-864.82,9.999e-05,2]
[355694414,1741469438352,-500.0,9.999e-05,2]
[355694416,1741469438361,-500.0,9.999e-05,2]
[355694418,1741469438371,-500.0,9.999e-05,2]
[355694420,1741469438380,-500.0,9.999e-05,2]
[355694421,1741469438389,-500.0,9.999e-05,2]
[355694422,1741469438399,-500.0,9.999e-05,2]
[355694423,1741469438409,-500.0,9.999e-05,2]
[355694424,1741469438424,-500.0,9.999e-05,2]
[355694425,1741469438434,-500.0,9.999e-05,2]
[355694426,1741469438450,-500.0,9.999e-05,2]
[355694428,1741469438460,-500.0,9.999e-05,2]
[355694430,1741469438469,-500.0,9.999e-05,2]
[355694432,1741469438479,-500.0,9.999e-05,2]
[355694434,1741469438488,-500.0,9.999e-05,2]
[355694436,1741469438497,-500.0,9.999e-05,2]
[355694438,1741469438506,-500.0,9.999e-05,2]
[355694440,1741469438516,-500.0,9.999e-05,2]
[355694442,1741469438525,-119.58384599,9.999e-05,2]
[355694445,1741469438537,-380.41615401,9.999e-05,2]
[355694448,1741469438546,-494.11736029,9.999e-05,2]
[355694451,1741469438557,-5.88263971,9.999e-05,2]
[355694454,1741469438566,-383.47970201,9.999e-05,2]
[355694618,1741469440095,-166.97700755,9.999e-05,2]
[355694620,1741469440105,-500.0,9.999e-05,2]
[355694622,1741469440114,-500.0,9.999e-05,2]
[355694623,1741469440123,-840.14,9.999e-05,2]
[355694624,1741469440133,-539.42,9.999e-05,2]
[355694625,1741469440142,-500.0,9.999e-05,2]
[355694626,1741469440151,-1760.8,9.999e-05,2]
[355694627,1741469440160,-500.0,9.999e-05,2]
[355694628,1741469440169,-500.0,9.999e-05,2]
[355694629,1741469440179,-698.72,9.999e-05,2]
[355694630,1741469440189,-918.05,9.999e-05,2]
[355694631,1741469440199,-500.0,9.999e-05,2]
[355694632,1741469440208,-500.0,9.999e-05,2]
[355694633,1741469440218,-527.05,9.999e-05,2]
[355694634,1741469440227,-569.71,9.999e-05,2]
[355694635,1741469440237,-500.0,9.999e-05,2]
[355694636,1741469440246,-1393.6,9.999e-05,2]
[355694637,1741469440255,-734.83,9.999e-05,2]
[355694638,1741469440265,-1556.16,9.999e-05,2]
[355694639,1741469440275,-500.0,9.999e-05,2]
[355694640,1741469440285,-812.45,9.999e-05,2]
[355694641,1741469440294,-1636.79,9.999e-05,2]
[355694642,1741469440304,-561.1,9.999e-05,2]
[355694643,1741469440313,-500.0,9.999e-05,2]
[355694644,1741469440323,-1644.94,9.999e-05,2]
[355694645,1741469440333,-2715.46,9.999e-05,2]
[355694646,1741469440342,-651.97,9.999e-05,2]
[355694647,1741469440351,-7875.01,9.999e-05,2]
[355694648,1741469440361,-500.0,9.999e-05,2]
[355694649,1741469440370,-500.0,9.999e-05,2]
[355694650,1741469440379,-500.0,9.999e-05,2]
[355694651,1741469440389,-500.0,9.999e-05,2]
[355694652,1741469440398,-500.0,9.999e-05,2]
[355694653,1741469440408,-717.57,9.999e-05,2]
[355694654,1741469440417,-500.0,9.999e-05,2]
[355694655,1741469440427,-502.44,9.999e-05,2]
[355694656,1741469440436,-673.71,9.999e-05,2]
[355694657,1741469440445,-516.43,9.999e-05,2]
[355694658,1741469440454,-1762.95,9.999e-05,2]
[355694659,1741469440464,-500.0,9.999e-05,2]
[355694660,1741469440473,-555.13,9.999e-05,2]
[355694661,1741469440483,-659.74,9.999e-05,2]
[355694662,1741469440492,-500.0,9.999e-05,2]
[355694663,1741469440502,-995.76,9.999e-05,2]
[355694664,1741469440511,-777.29,9.999e-05,2]
[355694665,1741469440520,-500.0,9.999e-05,2]
[355694666,1741469440529,-569.5,9.999e-05,2]
[355694667,1741469440539,-811.66,9.999e-05,2]
[355694668,1741469440549,-5644.85,9.999e-05,2]
[355694669,1741469440558,-500.0,9.999e-05,2]
[355694671,1741469440568,-820.51,9.999e-05,2]
[355694673,1741469440578,-500.0,9.999e-05,2]
[355694674,1741469440587,-500.0,9.999e-05,2]
[355694675,1741469440596,-634.43,9.999e-05,2]
[355694676,1741469440606,-569.08,9.999e-05,2]
[355694677,1741469440616,-589.68,9.999e-05,2]
[355694678,1741469440625,-500.0,9.999e-05,2]
[355694679,1741469440635,-1306.22,9.999e-05,2]
[355694680,1741469440648,-500.0,9.999e-05,2]
[355694681,1741469440657,-500.0,9.999e-05,2]
[355694682,1741469440666,-1939.68,9.999e-05,2]
[355694683,1741469440676,-500.0,9.999e-05,2]
[355694684,1741469440685,-500.0,9.999e-05,2]
[355694685,1741469440694,-806.9,9.999e-05,2]
[355694686,1741469440703,-500.0,9.999e-05,2]
[355694687,1741469440712,-500.0,9.999e-05,2]
[355694688,1741469440721,-3322.13,9.999e-05,2]
[355694689,1741469440731,-500.0,9.999e-05,2]
[355694690,1741469440740,-500.0,9.999e-05,2]
[355694691,1741469440749,-500.0,9.999e-05,2]
[355694692,1741469440758,-500.0,9.999e-05,2]
[355694693,1741469440767,-1440.76,9.999e-05,2]
[355694694,1741469440777,-500.0,9.999e-05,2]
[355694695,1741469440786,-1339.61,9.999e-05,2]
[355694696,1741469440796,-500.0,9.999e-05,2]
[355694697,1741469440805,-500.0,9.999e-05,2]
[355694698,1741469440815,-683.39,9.999e-05,2]
[355694699,1741469440824,-2241.44,9.999e-05,2]
[355694700,1741469440834,-500.0,9.999e-05,2]
[355694701,1741469440843,-967.33,9.999e-05,2]
[355694702,1741469440853,-420.701919,9.999e-05,2]
[355694703,1741469440865,-500.0,9.999e-05,2]
[355694704,1741469440874,-530.32,9.999e-05,2]
[355694705,1741469440884,-611.5,9.999e-05,2]
[355694706,1741469440895,-784.49,9.999e-05,2]
[355694707,1741469440909,-441.02494293,9.999e-05,2]
[355694708,1741469440919,-500.0,9.999e-05,2]
[355694709,1741469440929,-500.0,9.999e-05,2]
[355694710,1741469440939,-364.84996807,9.999e-05,2]
[355694711,1741469440949,-500.0,9.999e-05,2]
[355694712,1741469440958,-500.0,9.999e-05,2]
[355694713,1741469440967,-691.63,9.999e-05,2]
[355694714,1741469440976,-500.0,9.999e-05,2]
[355694715,1741469440986,-500.0,9.999e-05,2]
[355694716,1741469440996,-500.0,9.999e-05,2]
[355694717,1741469441006,-500.0,9.999e-05,2]
[355694718,1741469441017,-555.99,9.999e-05,2]
[355694719,1741469441027,-159.49820968,9.999e-05,2]
[355694720,1741469441037,-500.0,9.999e-05,2]
[355694721,1741469441047,-680.07,9.999e-05,2]
[355694722,1741469441058,-500.0,9.999e-05,2]
[355694723,1741469441068,-926.46,9.999e-05,2]
[355694724,1741469441078,-1003.16,9.999e-05,2]
[355694725,1741469441089,-500.0,9.999e-05,2]
[355694726,1741469441098,-500.0,9.999e-05,2]
[355694727,1741469441108,-500.0,9.999e-05,2]
[355694728,1741469441118,-1390.33,9.999e-05,2]
[355694729,1741469441128,-3914.4866529,9.999e-05,2]
[355694730,1741469441138,-1496.0,9.999e-05,2]
[355694731,1741469441147,-636.98452925,9.999e-05,2]
[355694732,1741469441157,-160507.9986352,9.999e-05,2]
[355694733,1741469441170,-8677.888477,9.999e-05,2]
[355694734,1741469441187,-263.4079725,9.999e-05,2]
[355694735,1741469441199,-46252.82002684,9.999e-05,2]
[355694736,1741469441211,-91802.24968355,9.999e-05,2]
[355694737,1741469441223,-8137.33473741,9.999e-05,2]
[355694738,1741469441235,-2454.9999,9.999e-05,2]
[355694739,1741469441250,-3675.1923782,9.999e-05,2]
[355694741,1741469443250,-528.9391607,9.899e-05,2]
[355694742,1741469443263,-471.0608393,9.899e-05,2]
[355694743,1741469443272,-2584.12980448,9.999e-05,2]
[355694744,1741469443364,-686.0,9.999e-05,2]
[355694745,1741469443376,-11781.64261542,9.999e-05,2]
[355694746,1741469443387,-13368.19984244,9.999e-05,2]
[355694759,1741469446111,-500.0,9.999e-05,2]
[355694760,1741469446123,-1168.70502685,9.999e-05,2]
[355694761,1741469446135,-2523.70000002,9.999e-05,2]
[355694762,1741469446230,-409.83101006,9.999e-05,2]
[355694763,1741469446290,-10001.14880162,9.999e-05,2]
[355694764,1741469446354,-375341.80625705,9.999e-05,2]
[355694785,1741469597250,500.0,0.00026108,120]
[355694786,1741469597643,500.0,0.0002796,120]
[355694809,1741470195920,500.0,0.00025433,120]
[355694810,1741470196780,500.0,0.00027677,120]
[355694811,1741470230537,3110.0,8e-05,2]
[355694812,1741470230562,8891.50350724,8e-05,2]
[355694813,1741470230582,10000.0,8e-05,2]
[355694814,1741470230603,4513.26649276,8e-05,2]
[355694845,1741470632533,-395.97891996,8.219e-05,2]
[355694846,1741470632545,-703.66108004,8.219e-05,2]
[355694847,1741470632556,-164.27,8.824e-05,2]
[355694848,1741470632564,-493.18398788,8.896e-05,2]
[355694849,1741470632577,-478.31060746,8.896e-05,2]
[355694850,1741470632595,-28.50540466,8.896e-05,2]
[355694851,1741470632606,-164.27,8.9e-05,2]
[355694852,1741470632616,-1453.67624124,8.9e-05,2]
[355694853,1741470632630,-836.97764183,8.905e-05,2]
[355694854,1741470632646,-689.30241408,8.905e-05,2]
[355694855,1741470632658,-1508.53994409,8.905e-05,2]
[355694856,1741470632667,-164.27,8.975e-05,2]
[355694857,1741470632677,-421.93,8.984e-05,2]
[355694858,1741470632687,-150.0,9.041e-05,2]
[355694859,1741470632696,-164.27,9.051e-05,2]
[355694860,1741470632705,-164.27,9.127e-05,2]
[355694861,1741470632715,-400.0,9.2e-05,3]
[355694862,1741470632724,-164.27,9.202e-05,2]
[355694863,1741470632733,-901.34,9.202e-05,2]
[355694864,1741470632743,-299.99,9.202e-05,2]
[355694865,1741470632752,-150.0,9.26e-05,2]
[355694866,1741470632761,-9.65768792,9.278e-05,2]
[355694868,1741470632773,-154.61231208,9.278e-05,2]
[355694870,1741470632783,-170.52,9.283e-05,2]
[355694872,1741470632791,-671.80768792,9.3e-05,3]
[355694873,1741470632803,-128.19231208,9.3e-05,3]
[355694874,1741470632812,-164.27,9.354e-05,2]
[355694875,1741470632822,-586.5349479,9.4e-05,3]
[355694876,1741470632858,-613.4650521,9.4e-05,3]
[355694877,1741470632867,-1453.67624123,9.4e-05,2]
[355694878,1741470632876,-6.38760816,9.5e-05,3]
[355694880,1741470632887,-1184.17281378,9.5e-05,3]
[355694892,1741470638243,-409.43957806,9.5e-05,3]
[355694893,1741470638255,-2000.0,9.6e-05,3]
[355694894,1741470638264,-400.0,9.7e-05,3]
[355694895,1741470638275,-150.0,9.706e-05,2]
[355694896,1741470638286,-150.0,9.706e-05,2]
[355694897,1741470638295,-1469.7725,9.799e-05,2]
[355694898,1741470638305,-400.0,9.8e-05,3]
[355694899,1741470638315,-8994.94708147,9.804e-05,2]
[355694900,1741470638325,-386.2165,9.899e-05,2]
[355694901,1741470638334,-2500.0,9.899e-05,2]
[355694902,1741470638344,-8366.0375,9.899e-05,2]
[355694903,1741470638353,-4079.3882,9.899e-05,2]
[355694904,1741470638363,-7206.52541354,9.899e-05,2]
[355694905,1741470638375,-1527.0911327,9.899e-05,2]
[355694906,1741470638386,-10029.2,9.899e-05,2]
[355694907,1741470638409,-2101.10676885,9.899e-05,2]
[355694908,1741470638424,-19329.09318711,9.899e-05,2]
[355694909,1741470638438,-786.9152623,9.899e-05,2]
[355694910,1741470638518,-3586.20521519,9.899e-05,2]
[355694911,1741470638583,-4079.38824232,9.899e-05,2]
[355694912,1741470638595,-750.24744265,9.899e-05,2]
[355694913,1741470638606,-905.65905487,9.899e-05,2]
[355694920,1741470640363,-11008.25608047,9.899e-05,2]
[355694921,1741470640373,-400.0,9.9e-05,3]
[355694922,1741470640382,-1000.0,9.9e-05,2]
[355694923,1741470640391,-1453.67624123,9.9e-05,2]
[355694924,1741470640401,-503.63393054,9.973e-05,2]
[355694925,1741470640411,-500.78592143,9.973e-05,2]
[355694926,1741470640420,-452.11301621,9.973e-05,2]
[355694927,1741470640429,-502.83,9.973e-05,2]
[355694928,1741470640438,-150.0,9.973e-05,2]
[355694929,1741470640448,-344.81,9.973e-05,2]
[355694930,1741470640457,-1039.93764838,9.998e-05,2]
[355694931,1741470640466,-539.42,9.998e-05,2]
[355694932,1741470640476,-500.0,9.998e-05,2]
[355694933,1741470640486,-174.6,9.998e-05,2]
[355694934,1741470640495,-500.0,9.998e-05,2]
[355694935,1741470640504,-651.97,9.998e-05,2]
[355694936,1741470640514,-1762.95,9.998e-05,2]
[355694937,1741470640523,-777.29,9.998e-05,2]
[355694938,1741470640532,-1306.22,9.998e-05,2]
[355694939,1741470640541,-500.0,9.998e-05,2]